No. of Trans,Dept Family,Entity Name,Cert Date,Supplier Name,Reference,Gross Amt,Group/Department,Type of Expenditure - Subjective Codes,
1,DCMS,EH,10/04/2013,Feilden Clegg Bradley Studios LLP,0040024339,"86,221.20 ",Heritage Protection & Planning Group - Nat. Planning & Conservation Department,Commissioned architects,
2,DCMS,EH,10/04/2013,Feilden Clegg Bradley Studios LLP,0040024340,"86,221.20 ",Heritage Protection & Planning Group - Nat. Planning & Conservation Department,Commissioned architects,
3,DCMS,EH,19/03/2013,University of Oxford,0040024663,"25,000.00 ",National Collections Group - Curatorial Department,Built Environment Research,
4,DCMS,EH,04/03/2013,Oxford Archaeological Unit Ltd,0040023235,"34,800.00 ",Heritage Protection & Planning Group - Heritage Protection Department,Hist Environ Prog Projects Gra,
5,DCMS,EH,26/03/2013,Oxford Archaeological Unit Ltd,0040025102,"25,434.00 ",Heritage Protection & Planning Group - Heritage Protection Department,Hist Environ Prog Projects Gra,
6,DCMS,EH,10/04/2013,Purcell,0040028259,"33,337.80 ",Heritage Protection & Planning Group - Nat. Planning & Conservation Department,Fees for Professional Advice,
7,DCMS,EH,28/03/2013,Treasure and Son,0040025873,"49,733.94 ",National Collections Group - Property Maintenance Programme,Annual Cyclical Works-Building,
8,DCMS,EH,28/03/2013,Treasure and Son,0040025873,"2,144.29 ",National Collections Group - Property Maintenance Programme,Annual Cyclical Works-Building,
9,DCMS,EH,07/03/2013,Building Research Establishment,0040023154,"35,635.20 ",National Collections Group - Head of Estates,Built Environment Research,
10,DCMS,EH,25/03/2013,Lorne Stewart plc,0040023759,"38,758.00 ",National Collections Group - Property Maintenance Programme,Planned Maintenance,
11,DCMS,EH,28/03/2013,Nimbus Conservation,0040024283,"11,035.51 ",Heritage Protection & Planning Group - Nat. Planning & Conservation Department,Technical research,
12,DCMS,EH,28/03/2013,Nimbus Conservation,0040024283,"19,733.82 ",Heritage Protection & Planning Group - Nat. Planning & Conservation Department,Technical research,
13,DCMS,EH,09/04/2013,Parsons Landscapes Ltd,0040027471,888.00 ,National Collections Group - Property Maintenance Programme,Annual Cyclical Work Grounds,
14,DCMS,EH,09/04/2013,Parsons Landscapes Ltd,0040027471,"3,000.00 ",National Collections Group - Property Maintenance Programme,Annual Cyclical Work Grounds,
15,DCMS,EH,09/04/2013,Parsons Landscapes Ltd,0040027471,444.00 ,National Collections Group - Property Maintenance Programme,Annual Cyclical Work Grounds,
16,DCMS,EH,09/04/2013,Parsons Landscapes Ltd,0040027471,"1,332.00 ",National Collections Group - Property Maintenance Programme,Annual Cyclical Work Grounds
17,DCMS,EH,09/04/2013,Parsons Landscapes Ltd,0040027471,444.00 ,National Collections Group - Property Maintenance Programme,Annual Cyclical Work Grounds
18,DCMS,EH,09/04/2013,Parsons Landscapes Ltd,0040027471,444.00 ,National Collections Group - Property Maintenance Programme,Annual Cyclical Work Grounds
19,DCMS,EH,09/04/2013,Parsons Landscapes Ltd,0040027471,"2,844.00 ",National Collections Group - Property Maintenance Programme,Annual Cyclical Work Grounds
20,DCMS,EH,09/04/2013,Parsons Landscapes Ltd,0040027471,"2,220.00 ",National Collections Group - Property Maintenance Programme,Annual Cyclical Work Grounds
21,DCMS,EH,09/04/2013,Parsons Landscapes Ltd,0040027471,"4,440.00 ",National Collections Group - Property Maintenance Programme,Annual Cyclical Work Grounds
22,DCMS,EH,09/04/2013,Parsons Landscapes Ltd,0040027471,"2,220.00 ",National Collections Group - Property Maintenance Programme,Annual Cyclical Work Grounds
23,DCMS,EH,09/04/2013,Parsons Landscapes Ltd,0040027471,"3,108.00 ",National Collections Group - Property Maintenance Programme,Annual Cyclical Work Grounds
24,DCMS,EH,09/04/2013,Parsons Landscapes Ltd,0040027471,"1,332.00 ",National Collections Group - Property Maintenance Programme,Annual Cyclical Work Grounds
25,DCMS,EH,09/04/2013,Parsons Landscapes Ltd,0040027471,888.00 ,National Collections Group - Property Maintenance Programme,Annual Cyclical Work Grounds
26,DCMS,EH,09/04/2013,Parsons Landscapes Ltd,0040027471,"1,776.00 ",National Collections Group - Property Maintenance Programme,Annual Cyclical Work Grounds
27,DCMS,EH,09/04/2013,Parsons Landscapes Ltd,0040027471,90.00 ,National Collections Group - Property Maintenance Programme,Annual Cyclical Work Grounds
28,DCMS,EH,09/04/2013,Parsons Landscapes Ltd,0040027471,888.00 ,National Collections Group - Property Maintenance Programme,Annual Cyclical Work Grounds
29,DCMS,EH,09/04/2013,Parsons Landscapes Ltd,0040027471,"8,496.00 ",National Collections Group - Property Maintenance Programme,Annual Cyclical Work Grounds
30,DCMS,EH,21/03/2013,Wiltshire Council,0020050828,"329,700.00 ",National Collections Group - Historic Properties Department,Rates & CILOR
31,DCMS,EH,21/03/2013,Wiltshire Council,0020050828,"(263,760.00)",National Collections Group - Historic Properties Department,Rates Rebates
32,DCMS,EH,07/03/2013,Concept Displays (S.W) Ltd,0040023827,"37,464.00 ",National Collections Group - Capital Investment Programme,WIP Refurb & Fitting Out
33,DCMS,EH,14/03/2013,Concept Displays (S.W) Ltd,0040024535,"79,800.00 ",National Collections Group - Capital Investment Programme,WIP Refurb & Fitting Out
34,DCMS,EH,14/03/2013,Concept Displays (S.W) Ltd,0040024560,"33,032.40 ",National Collections Group - Major Conservation Projects,WIP Refurb & Fitting Out
35,DCMS,EH,11/03/2013,R Moulding and Co Salisbury Ltd,0040023923,"58,635.34 ",National Collections Group - Property Maintenance Programme,Annual Cyclical Works-Building
36,DCMS,EH,28/03/2013,R Moulding and Co Salisbury Ltd,0040025721,"46,664.88 ",National Collections Group - Property Maintenance Programme,Annual Cyclical Works-Building
37,DCMS,EH,08/04/2013,R Moulding and Co Salisbury Ltd,0040027785,"45,123.43 ",National Collections Group - Property Maintenance Programme,Annual Cyclical Works-Building
38,DCMS,EH,28/03/2013,W H Smith and R Ensor SAP Scheme,0040026333,"35,516.40 ",Resources Group - Office Estate,Rent - Operating Leases
39,DCMS,EH,20/03/2013,Wessex Archaeology,0040024292,"52,475.50 ",Heritage Protection & Planning Group - Heritage Protection Department,Maritime Consultants
40,DCMS,EH,12/03/2013,Firmingers,0040023255,"50,134.80 ",National Collections Group - Capital Investment Programme,WIP Professional Works Advice
41,DCMS,EH,18/03/2013,Knight Frank LLP,0040024845,"16,747.36 ",Resources Group - Office Estate,Building Service Charges
42,DCMS,EH,18/03/2013,Knight Frank LLP,0040024845,"45,353.70 ",Resources Group - Office Estate,Rent - Operating Leases
43,DCMS,EH,06/03/2013,The National Trust Wiltshire,0040021485,"19,303.10 ",National Collections Group - Historic Properties Department,Rent - Operating Leases
44,DCMS,EH,06/03/2013,The National Trust Wiltshire,0040021485,"42,920.58 ",National Collections Group - Historic Properties Department,Rent - Operating Leases
45,DCMS,EH,02/04/2013,The National Trust Wiltshire,0040026255,"36,809.80 ",National Collections Group - Historic Properties Department,Rent - Operating Leases
46,DCMS,EH,03/04/2013,Wise Worksafe,0040026515,"24,000.00 ",National Collections Group - Historic Properties Department,Clothing & uniforms
47,DCMS,EH,03/04/2013,Wise Worksafe,0040026515,"24,000.00 ",National Collections Group - Historic Properties Department,Clothing & uniforms
48,DCMS,EH,03/04/2013,Wise Worksafe,0040026515,"36,000.00 ",National Collections Group - Historic Properties Department,Clothing & uniforms
49,DCMS,EH,03/04/2013,Wise Worksafe,0040026515,"6,000.00 ",National Collections Group - Historic Properties Department,Clothing & uniforms
50,DCMS,EH,19/03/2013,Guildford Borough Council - Bus. Rates,0020050771,"56,991.00 ",Resources Group - Office Estate,Rates & CILOR
51,DCMS,EH,22/03/2013,Sykes and Son Limited,0040024186,"1,200.00 ",National Collections Group - Property Maintenance Programme,Annual Cyclical Works-Building
52,DCMS,EH,22/03/2013,Sykes and Son Limited,0040024186,"6,300.00 ",National Collections Group - Property Maintenance Programme,Annual Cyclical Works-Building
53,DCMS,EH,22/03/2013,Sykes and Son Limited,0040024186,"12,360.00 ",National Collections Group - Property Maintenance Programme,Annual Cyclical Works-Building
54,DCMS,EH,22/03/2013,Sykes and Son Limited,0040024186,"7,860.00 ",National Collections Group - Property Maintenance Programme,Annual Cyclical Works-Building
55,DCMS,EH,22/03/2013,Sykes and Son Limited,0040024186,"2,820.00 ",National Collections Group - Property Maintenance Programme,Annual Cyclical Works-Building
56,DCMS,EH,28/03/2013,Sykes and Son Limited,0040026808,"7,106.40 ",National Collections Group - Property Maintenance Programme,Planned Maintenance
57,DCMS,EH,28/03/2013,Sykes and Son Limited,0040026808,"11,160.00 ",National Collections Group - Property Maintenance Programme,Planned Maintenance
58,DCMS,EH,28/03/2013,Sykes and Son Limited,0040026808,"10,140.00 ",National Collections Group - Property Maintenance Programme,Planned Maintenance
59,DCMS,EH,28/03/2013,Sykes and Son Limited,0040026808,"8,100.00 ",National Collections Group - Property Maintenance Programme,Planned Maintenance
60,DCMS,EH,28/03/2013,Sykes and Son Limited,0040026808,"25,708.80 ",National Collections Group - Property Maintenance Programme,Planned Maintenance
61,DCMS,EH,11/03/2013,Oracle Corporation UK Ltd,0040023889,"42,225.93 ",Resources Group - IMT Department,Software Maintenance
62,DCMS,EH,27/03/2013,Bond Pearce,0020050916,"6,000.00 ",National Collections Group - Historic Properties Department,Legal fees
63,DCMS,EH,27/03/2013,Bond Pearce,0020050916,"45,000.00 ",National Collections Group - Historic Properties Department,Legal fees
64,DCMS,EH,06/03/2013,DBR (London) Ltd,0040023322,"1,515.92 ",National Collections Group - Property Maintenance Programme,Planned Maintenance
65,DCMS,EH,06/03/2013,DBR (London) Ltd,0040023322,"35,564.98 ",National Collections Group - Property Maintenance Programme,Planned Maintenance
66,DCMS,EH,08/03/2013,PAYE Stonework and Restoration Ltd,0040023867,"348,031.74 ",National Collections Group - Major Conservation Projects,Works for Heritage Buildings
67,DCMS,EH,04/04/2013,PAYE Stonework and Restoration Ltd,0040026534,"176,700.14 ",National Collections Group - Major Conservation Projects,Works for Heritage Buildings
68,DCMS,EH,04/04/2013,PAYE Stonework and Restoration Ltd,0040026534,"119,271.78 ",National Collections Group - Major Conservation Projects,WIP Operational Building Works
69,DCMS,EH,26/03/2013,Raphael Historic Falconry,0040025853,"6,240.00 ",National Collections Group - Historic Properties Department,Exhibits/Displays
70,DCMS,EH,26/03/2013,Raphael Historic Falconry,0040025853,"7,200.00 ",National Collections Group - Historic Properties Department,Exhibits/Displays
71,DCMS,EH,26/03/2013,Raphael Historic Falconry,0040025853,"24,000.00 ",National Collections Group - Historic Properties Department,Exhibits/Displays
72,DCMS,EH,27/03/2013,Gillards Worldwide,0040025434,"38,848.18 ",National Collections Group - Historic Properties Department,Storage & warehousing
73,DCMS,EH,11/04/2013,Gillards Worldwide,0040028429,"62,454.84 ",National Collections Group - Historic Properties Department,Storage & warehousing
74,DCMS,EH,05/04/2013,Norman Disney and Young,0040027805,"26,460.00 ",National Collections Group - Capital Investment Programme,WIP Professional Works Advice
75,DCMS,EH,07/03/2013,Historic Property Restoration Ltd,0040023814,"1,484.06 ",National Collections Group - Property Maintenance Programme,Responsive Maint Building
76,DCMS,EH,07/03/2013,Historic Property Restoration Ltd,0040023814,"9,405.77 ",National Collections Group - Property Maintenance Programme,Responsive Maint Building
77,DCMS,EH,07/03/2013,Historic Property Restoration Ltd,0040023814,"9,669.82 ",National Collections Group - Property Maintenance Programme,Responsive Repairs M & E
78,DCMS,EH,07/03/2013,Historic Property Restoration Ltd,0040023814,191.32 ,National Collections Group - Property Maintenance Programme,Responsive Repairs M & E
79,DCMS,EH,07/03/2013,Historic Property Restoration Ltd,0040023814,"9,666.94 ",National Collections Group - Property Maintenance Programme,Planned Maintenance
80,DCMS,EH,07/03/2013,Historic Property Restoration Ltd,0040023814,427.05 ,National Collections Group - Property Maintenance Programme,Planned Maintenance
81,DCMS,EH,07/03/2013,Historic Property Restoration Ltd,0040023814,"2,651.20 ",National Collections Group - Property Maintenance Programme,Leased Accomodation Maint
82,DCMS,EH,09/04/2013,Historic Property Restoration Ltd,0040026604,"25,240.80 ",National Collections Group - Curatorial Department,Exhibits/Displays
83,DCMS,EH,05/04/2013,Historic Property Restoration Ltd,0040026693,"26,678.09 ",National Collections Group - Property Maintenance Programme,Annual Cyclical Works-Building
84,DCMS,EH,05/04/2013,Historic Property Restoration Ltd,0040026693,"1,191.36 ",National Collections Group - Property Maintenance Programme,Annual Cyclical Works-Building
85,DCMS,EH,05/04/2013,Historic Property Restoration Ltd,0040026693,"12,759.14 ",National Collections Group - Property Maintenance Programme,Annual Cyclical Work M & E
86,DCMS,EH,05/04/2013,Historic Property Restoration Ltd,0040026693,"1,412.36 ",National Collections Group - Property Maintenance Programme,Leased Accomodation Maint
87,DCMS,EH,05/04/2013,Historic Property Restoration Ltd,0040026693,838.19 ,National Collections Group - Property Maintenance Programme,Annual Cyclical Work M & E
88,DCMS,EH,05/04/2013,Historic Property Restoration Ltd,0040026696,514.78 ,National Collections Group - Property Maintenance Programme,Responsive Maint Building
89,DCMS,EH,05/04/2013,Historic Property Restoration Ltd,0040026696,"6,413.23 ",National Collections Group - Property Maintenance Programme,Responsive Maint Building
90,DCMS,EH,05/04/2013,Historic Property Restoration Ltd,0040026696,"5,825.47 ",National Collections Group - Property Maintenance Programme,Responsive Repairs M & E
91,DCMS,EH,05/04/2013,Historic Property Restoration Ltd,0040026696,535.38 ,National Collections Group - Property Maintenance Programme,Responsive Repairs M & E
92,DCMS,EH,05/04/2013,Historic Property Restoration Ltd,0040026696,"2,403.87 ",National Collections Group - Property Maintenance Programme,Planned Maintenance
93,DCMS,EH,05/04/2013,Historic Property Restoration Ltd,0040026696,"11,686.51 ",National Collections Group - Property Maintenance Programme,Planned Maintenance
94,DCMS,EH,05/04/2013,Historic Property Restoration Ltd,0040026696,660.36 ,National Collections Group - Property Maintenance Programme,Leased Accomodation Maint
95,DCMS,EH,03/04/2013,Historic Property Restoration Ltd,0040027171,"27,166.64 ",National Collections Group - Property Maintenance Programme,Annual Cyclical Works-Building
96,DCMS,EH,09/04/2013,Historic Property Restoration Ltd,0040027799,"50,353.74 ",National Collections Group - Property Maintenance Programme,Annual Cyclical Works-Building
97,DCMS,EH,09/04/2013,Historic Property Restoration Ltd,0040027799,"23,951.13 ",National Collections Group - Property Maintenance Programme,Annual Cyclical Work M & E
98,DCMS,EH,09/04/2013,Historic Property Restoration Ltd,0040027799,"4,385.68 ",National Collections Group - Property Maintenance Programme,Leased Accomodation Maint
99,DCMS,EH,09/04/2013,Historic Property Restoration Ltd,0040027799,205.28 ,National Collections Group - Property Maintenance Programme,Annual Cyclical Work M & E
100,DCMS,EH,09/04/2013,Historic Property Restoration Ltd,0040027799,"(7,710.42)",National Collections Group - Property Maintenance Programme,Annual Cyclical Work M & E
101,DCMS,EH,09/04/2013,Historic Property Restoration Ltd,0040027799,"23,951.12 ",National Collections Group - Property Maintenance Programme,Annual Cyclical Work M & E
102,DCMS,EH,14/03/2013,Powis Hughes Ltd,0040024358,"27,500.40 ",Resources Group - Office Estate,Fees for Professional Advice
103,DCMS,EH,15/03/2013,ADT Fire and Security,0040023907,"31,238.40 ",National Collections Group - Capital Investment Programme,WIP Operational Building Works
104,DCMS,EH,14/03/2013,Ratcliffes,0040024209,"226,800.00 ",Resources Group - Office Estate,Rent - Operating Leases
105,DCMS,EH,14/03/2013,Ratcliffes,0040024209,"56,700.00 ",Resources Group - Office Estate,Rent - Operating Leases
106,DCMS,EH,13/03/2013,Swindon Borough Council,0020050709,"(190,284.00)",Resources Group - Office Estate,Rates Rebates
107,DCMS,EH,13/03/2013,Swindon Borough Council,0020050709,"237,855.00 ",Resources Group - Office Estate,Rates & CILOR
108,DCMS,EH,20/03/2013,Highspeed Group Ltd,0040025300,"25,074.00 ",National Collections Group - Capital Investment Programme,Plant & Equipment > 10k
109,DCMS,EH,09/04/2013,Sinclair Knight Merz (Europe) Ltd,0040027478,"3,600.00 ",National Collections Group - Capital Investment Programme,WIP Professional Works Advice
110,DCMS,EH,09/04/2013,Sinclair Knight Merz (Europe) Ltd,0040027478,"26,858.10 ",National Collections Group - Capital Investment Programme,WIP Professional Works Advice
111,DCMS,EH,06/03/2013,ISS Facility Services Ltd - Security,0040022554,"26,880.00 ",National Collections Group - Property Maintenance Programme,Security Guard & Monitor Stati
112,DCMS,EH,03/04/2013,ISS Facility Services Ltd - Security,0040025259,"26,880.00 ",National Collections Group - Property Maintenance Programme,Security Guard & Monitor Stati
113,DCMS,EH,09/04/2013,B W May & Son Ltd,0040028038,"35,686.80 ",National Collections Group - Capital Investment Programme,WIP Operational Building Works
114,DCMS,EH,11/03/2013,Archaeological Research Services,0040023888,"35,000.00 ",Heritage Protection & Planning Group - Heritage Protection Department,Hist Environ Prog Projects Gra
115,DCMS,EH,11/03/2013,Enterprise Rent A Car UK Ltd,0020050658,"39,924.06 ",Resources Group - Corporate,Car Hire
116,DCMS,EH,10/04/2013,Enterprise Rent A Car UK Ltd,0020051038,"45,423.64 ",Resources Group - Corporate,Car Hire
117,DCMS,EH,10/04/2013,Enterprise Rent A Car UK Ltd,0020051038,6.00 ,Resources Group - Corporate,Car Hire
118,DCMS,EH,05/03/2013,Micros Retail Services UK Ltd,0040023456,"43,714.08 ",Resources Group - IMT Department,Software Maintenance
119,DCMS,EH,03/04/2013,Micros Retail Services UK Ltd,0040026614,"5,760.00 ",Resources Group - IMT Department,Computer Equipment <10k
120,DCMS,EH,03/04/2013,Micros Retail Services UK Ltd,0040026614,"29,736.00 ",Resources Group - IMT Department,Computer Equipment <10k
121,DCMS,EH,03/04/2013,Micros Retail Services UK Ltd,0040026614,"9,108.00 ",Resources Group - IMT Department,Computer Equipment <10k
122,DCMS,EH,03/04/2013,Micros Retail Services UK Ltd,0040026614,360.00 ,Resources Group - IMT Department,Computer Equipment <10k
123,DCMS,EH,03/04/2013,Micros Retail Services UK Ltd,0040026614,432.00 ,Resources Group - IMT Department,Computer Equipment <10k
124,DCMS,EH,03/04/2013,Micros Retail Services UK Ltd,0040026614,480.00 ,Resources Group - IMT Department,Computer Equipment <10k
125,DCMS,EH,05/04/2013,Seazone Solutions Ltd,0040027178,"28,557.48 ",Resources Group - IMT Department,Software Licences <10k
126,DCMS,EH,03/04/2013,Willis Ltd,0040027271,"99,033.07 ",National Collections Group - National Collections Centre,Insurance
127,DCMS,EH,03/04/2013,Willis Ltd,0040027271,"5,941.98 ",National Collections Group - National Collections Centre,Insurance
128,DCMS,EH,28/03/2013,Seven,0040024157,"266,941.20 ",National Collections Group - Marketing Department,Marketing Distribution
129,DCMS,EH,04/04/2013,Margaret Richard Davies Associates,0040027401,"37,992.00 ",National Collections Group - Major Conservation Projects,Fees for Professional Advice
130,DCMS,EH,25/03/2013,Acanthus Clews Architects Ltd,0040024233,"34,742.40 ",National Collections Group - Asset Management Plan,Fees for Professional Advice
131,DCMS,EH,18/03/2013,D A Woolgar Ltd,0040024406,"39,145.00 ",National Collections Group - Property Maintenance Programme,Planned Maintenance
132,DCMS,EH,28/03/2013,Illustrated London News Ltd,0040024992,"28,864.80 ",National Collections Group - Marketing Department,Marketing Creative
133,DCMS,EH,28/03/2013,Illustrated London News Ltd,0040024992,"14,331.60 ",National Collections Group - Marketing Department,Digital
134,DCMS,EH,28/03/2013,Illustrated London News Ltd,0040024992,"3,480.00 ",National Collections Group - Marketing Department,Marketing Creative
135,DCMS,EH,28/03/2013,Illustrated London News Ltd,0040024992,"7,200.00 ",National Collections Group - Marketing Department,Marketing Creative
136,DCMS,EH,28/03/2013,Illustrated London News Ltd,0040024992,"7,920.00 ",National Collections Group - Marketing Department,Consumer Photography
137,DCMS,EH,28/03/2013,Illustrated London News Ltd,0040024992,"17,064.00 ",National Collections Group - Marketing Department,Marketing Creative
138,DCMS,EH,02/04/2013,Illustrated London News Ltd,0040024993,"32,990.40 ",National Collections Group - Marketing Department,Print and Production
139,DCMS,EH,28/03/2013,Illustrated London News Ltd,0040024994,"219,080.40 ",National Collections Group - Marketing Department,Print and Production
140,DCMS,EH,05/04/2013,Illustrated London News Ltd,0040027776,"14,295.60 ",National Collections Group - Marketing Department,Marketing Creative
141,DCMS,EH,05/04/2013,Illustrated London News Ltd,0040027776,"14,295.60 ",National Collections Group - Marketing Department,Marketing Creative
142,DCMS,EH,05/04/2013,Illustrated London News Ltd,0040027777,"15,229.20 ",National Collections Group - Marketing Department,Marketing Creative
143,DCMS,EH,05/04/2013,Illustrated London News Ltd,0040027777,"28,368.00 ",National Collections Group - Marketing Department,Marketing Creative
144,DCMS,EH,28/03/2013,Thomas Sinden Ltd,0040023501,"102,000.00 ",National Collections Group - Capital Investment Programme,Works for Heritage Buildings
145,DCMS,EH,28/03/2013,Evolve Business Consultancy Ltd,0040025502,"39,674.16 ",Resources Group - IMT Department,WIP Computer Consultancy
146,DCMS,EH,28/03/2013,Evolve Business Consultancy Ltd,0040025502,"11,940.00 ",Resources Group - IMT Department,WIP Computer Consultancy
147,DCMS,EH,05/03/2013,Tribal Education Ltd,0040023584,"54,268.80 ",Resources Group - IMT Department,Software Maintenance
148,DCMS,EH,25/03/2013,Construction Skills,0040025482,"70,000.00 ",Heritage Protection & Planning Group - Nat. Planning & Conservation Department,Technical research
149,DCMS,EH,02/04/2013,Pindar Plc,0040026791,"11,382.00 ",National Collections Group - Marketing Department,Print and Production
150,DCMS,EH,02/04/2013,Pindar Plc,0040026791,"59,561.00 ",National Collections Group - Marketing Department,Print and Production
151,DCMS,EH,02/04/2013,Pindar Plc,0040026791,"12,307.00 ",National Collections Group - Marketing Department,Print and Production
152,DCMS,EH,02/04/2013,Pindar Plc,0040026791,"118,600.00 ",National Collections Group - Marketing Department,Print and Production
153,DCMS,EH,02/04/2013,Pindar Plc,0040026791,152.00 ,National Collections Group - Marketing Department,Print and Production
154,DCMS,EH,04/03/2013,Fairhurst Ward Abbotts Ltd,0040023465,"77,788.13 ",National Collections Group - Major Conservation Projects,WIP Operational Building Works
155,DCMS,EH,04/04/2013,Fairhurst Ward Abbotts Ltd,0040026621,"89,700.42 ",National Collections Group - Major Conservation Projects,WIP Operational Building Works
156,DCMS,EH,09/04/2013,Digirati Ltd,0040028062,"29,862.00 ",National Advice & Information Group - Communications Department,System developments <50k
157,DCMS,EH,19/03/2013,Quadron Services Ltd,0040025025,"7,247.43 ",National Collections Group - Property Maintenance Programme,Annual Cyclical Works-Building
158,DCMS,EH,19/03/2013,Quadron Services Ltd,0040025025,"12,588.74 ",National Collections Group - Property Maintenance Programme,Annual Cyclical Works-Building
159,DCMS,EH,19/03/2013,Quadron Services Ltd,0040025025,"14,072.52 ",National Collections Group - Property Maintenance Programme,Annual Cyclical Works-Building
160,DCMS,EH,10/04/2013,Quadron Services Ltd,0040027641,"25,399.30 ",National Collections Group - Property Maintenance Programme,Annual Cyclical Works-Building
161,DCMS,EH,10/04/2013,Quadron Services Ltd,0040027641,93.34 ,National Collections Group - Property Maintenance Programme,Annual Cyclical Works-Building
162,DCMS,EH,09/04/2013,The Churches Conservation Trust,0040025997,"30,308.58 ",National Collections Group - Curatorial Department,GRANTS PAYABLE - OTHER GRANTS
163,DCMS,EH,03/04/2013,Elliott Baxter & Company Ltd,0040026684,"1,048.80 ",National Collections Group - Marketing Department,Print and Production
164,DCMS,EH,03/04/2013,Elliott Baxter & Company Ltd,0040026684,"1,048.80 ",National Collections Group - Marketing Department,Print and Production
165,DCMS,EH,03/04/2013,Elliott Baxter & Company Ltd,0040026684,"1,048.80 ",National Collections Group - Marketing Department,Print and Production
166,DCMS,EH,03/04/2013,Elliott Baxter & Company Ltd,0040026684,120.00 ,National Collections Group - Marketing Department,Print and Production
167,DCMS,EH,03/04/2013,Elliott Baxter & Company Ltd,0040026684,"4,314.00 ",National Collections Group - Marketing Department,Print and Production
168,DCMS,EH,03/04/2013,Elliott Baxter & Company Ltd,0040026684,"1,917.60 ",National Collections Group - Marketing Department,Print and Production
169,DCMS,EH,03/04/2013,Elliott Baxter & Company Ltd,0040026684,"1,488.00 ",National Collections Group - Marketing Department,Print and Production
170,DCMS,EH,03/04/2013,Elliott Baxter & Company Ltd,0040026684,744.00 ,National Collections Group - Marketing Department,Print and Production
171,DCMS,EH,03/04/2013,Elliott Baxter & Company Ltd,0040026684,744.00 ,National Collections Group - Marketing Department,Print and Production
172,DCMS,EH,03/04/2013,Elliott Baxter & Company Ltd,0040026684,744.00 ,National Collections Group - Marketing Department,Print and Production
173,DCMS,EH,03/04/2013,Elliott Baxter & Company Ltd,0040026684,744.00 ,National Collections Group - Marketing Department,Print and Production
174,DCMS,EH,03/04/2013,Elliott Baxter & Company Ltd,0040026684,744.00 ,National Collections Group - Marketing Department,Print and Production
175,DCMS,EH,03/04/2013,Elliott Baxter & Company Ltd,0040026684,744.00 ,National Collections Group - Marketing Department,Print and Production
176,DCMS,EH,03/04/2013,Elliott Baxter & Company Ltd,0040026684,"1,140.00 ",National Collections Group - Marketing Department,Print and Production
177,DCMS,EH,03/04/2013,Elliott Baxter & Company Ltd,0040026684,378.00 ,National Collections Group - Marketing Department,Print and Production
178,DCMS,EH,03/04/2013,Elliott Baxter & Company Ltd,0040026684,240.00 ,National Collections Group - Marketing Department,Print and Production
179,DCMS,EH,03/04/2013,Elliott Baxter & Company Ltd,0040026684,"1,980.00 ",National Collections Group - Marketing Department,Print and Production
180,DCMS,EH,03/04/2013,Elliott Baxter & Company Ltd,0040026684,792.00 ,National Collections Group - Marketing Department,Print and Production
181,DCMS,EH,03/04/2013,Elliott Baxter & Company Ltd,0040026684,792.00 ,National Collections Group - Marketing Department,Print and Production
182,DCMS,EH,03/04/2013,Elliott Baxter & Company Ltd,0040026684,396.00 ,National Collections Group - Marketing Department,Print and Production
183,DCMS,EH,03/04/2013,Elliott Baxter & Company Ltd,0040026684,"1,200.00 ",National Collections Group - Marketing Department,Print and Production
184,DCMS,EH,03/04/2013,Elliott Baxter & Company Ltd,0040026684,792.00 ,National Collections Group - Marketing Department,Print and Production
185,DCMS,EH,03/04/2013,Elliott Baxter & Company Ltd,0040026684,"1,440.00 ",National Collections Group - Marketing Department,Print and Production
186,DCMS,EH,03/04/2013,Elliott Baxter & Company Ltd,0040026684,"1,680.00 ",National Collections Group - Marketing Department,Print and Production
187,DCMS,EH,03/04/2013,Elliott Baxter & Company Ltd,0040026684,"1,680.00 ",National Collections Group - Marketing Department,Print and Production
188,DCMS,EH,03/04/2013,Elliott Baxter & Company Ltd,0040026684,"1,200.00 ",National Collections Group - Marketing Department,Print and Production
189,DCMS,EH,26/03/2013,Capita Secure Information Solutions Ltd,0040023905,"62,400.00 ",Resources Group - IMT Department,System developments <50k
190,DCMS,EH,26/03/2013,Capita Secure Information Solutions Ltd,0040023905,"13,138.14 ",Resources Group - Human Resources Department,Responsive Repairs M & E
191,DCMS,EH,15/03/2013,Capita Secure Information Solutions Ltd,0040024221,"26,964.30 ",Resources Group - IMT Department,ITFM
192,DCMS,EH,14/03/2013,Capita Secure Information Solutions Ltd,0040024452,"39,783.54 ",Resources Group - IMT Department,ITFM
193,DCMS,EH,14/03/2013,Capita Secure Information Solutions Ltd,0040024453,"79,567.08 ",Resources Group - IMT Department,ITFM
194,DCMS,EH,21/03/2013,Capita Secure Information Solutions Ltd,0040024851,"60,627.60 ",Resources Group - IMT Department,ITFM
195,DCMS,EH,21/03/2013,Capita Secure Information Solutions Ltd,0040024852,"30,000.00 ",Resources Group - IMT Department,ITFM
196,DCMS,EH,21/03/2013,Capita Secure Information Solutions Ltd,0040024852,"30,000.00 ",Resources Group - IMT Department,ITFM
197,DCMS,EH,21/03/2013,Capita Secure Information Solutions Ltd,0040024853,"75,574.80 ",Resources Group - IMT Department,ITFM
198,DCMS,EH,25/03/2013,Capita Secure Information Solutions Ltd,0040025357,"30,340.18 ",Resources Group - IMT Department,System developments <50k
199,DCMS,EH,04/04/2013,Capita Secure Information Solutions Ltd,0040025361,"52,926.24 ",Resources Group - IMT Department,System developments <50k
200,DCMS,EH,22/03/2013,Capita Secure Information Solutions Ltd,0040025363,"30,000.00 ",Resources Group - IMT Department,Computer consultancy
201,DCMS,EH,28/03/2013,Capita Secure Information Solutions Ltd,0040025368,"4,259.39 ",Resources Group - IMT Department,Computer Equipment <10k
202,DCMS,EH,28/03/2013,Capita Secure Information Solutions Ltd,0040025368,"6,400.00 ",Resources Group - IMT Department,Computer consultancy
203,DCMS,EH,28/03/2013,Capita Secure Information Solutions Ltd,0040025368,"11,333.33 ",Resources Group - IMT Department,Computer consultancy
204,DCMS,EH,28/03/2013,Capita Secure Information Solutions Ltd,0040025368,"9,913.87 ",Resources Group - IMT Department,Computer consultancy
205,DCMS,EH,28/03/2013,Capita Secure Information Solutions Ltd,0040025368,"13,887.55 ",Resources Group - IMT Department,Computer consultancy
206,DCMS,EH,22/03/2013,Capita Secure Information Solutions Ltd,0040025371,"60,000.00 ",Resources Group - IMT Department,System developments <50k
207,DCMS,EH,26/03/2013,Capita Secure Information Solutions Ltd,0040025866,"29,206.04 ",Resources Group - IMT Department,ITFM
208,DCMS,EH,27/03/2013,Capita Secure Information Solutions Ltd,0040026262,"40,418.40 ",Resources Group - IMT Department,ITFM
209,DCMS,EH,28/03/2013,Capita Secure Information Solutions Ltd,0040026599,"35,203.20 ",Resources Group - IMT Department,System developments <50k
210,DCMS,EH,28/03/2013,Capita Secure Information Solutions Ltd,0040026599,"7,722.82 ",Resources Group - IMT Department,System developments <50k
211,DCMS,EH,28/03/2013,Capita Secure Information Solutions Ltd,0040026599,"20,098.17 ",Resources Group - IMT Department,System developments <50k
212,DCMS,EH,28/03/2013,Capita Secure Information Solutions Ltd,0040026599,"1,428.00 ",Resources Group - IMT Department,System developments <50k
213,DCMS,EH,28/03/2013,Capita Secure Information Solutions Ltd,0040026599,"3,109.33 ",Resources Group - IMT Department,System developments <50k
214,DCMS,EH,28/03/2013,Capita Secure Information Solutions Ltd,0040026599,"1,323.43 ",Resources Group - IMT Department,System developments <50k
215,DCMS,EH,28/03/2013,Capita Secure Information Solutions Ltd,0040026599,"36,226.81 ",Resources Group - IMT Department,System developments <50k
216,DCMS,EH,28/03/2013,Capita Secure Information Solutions Ltd,0040026599,"27,600.00 ",Resources Group - IMT Department,System developments <50k
217,DCMS,EH,28/03/2013,Capita Secure Information Solutions Ltd,0040026599,"20,400.00 ",Resources Group - IMT Department,System developments <50k
218,DCMS,EH,28/03/2013,Capita Secure Information Solutions Ltd,0040026601,"30,493.20 ",Resources Group - IMT Department,Computer Equipment <10k
219,DCMS,EH,28/03/2013,Capita Secure Information Solutions Ltd,0040026601,"11,041.55 ",Resources Group - IMT Department,Computer Equipment <10k
220,DCMS,EH,02/04/2013,Capita Secure Information Solutions Ltd,0040026606,"246,784.62 ",Resources Group - IMT Department,ITFM
221,DCMS,EH,02/04/2013,Capita Secure Information Solutions Ltd,0040026608,"246,784.62 ",Resources Group - IMT Department,ITFM
222,DCMS,EH,11/04/2013,Capita Secure Information Solutions Ltd,0040027477,"58,920.89 ",Resources Group - IMT Department,Computer Equipment <10k
223,DCMS,EH,10/04/2013,CPI Card Group - UK Limited,0040028105,"45,429.00 ",National Collections Group - Marketing Department,Print and Production
224,DCMS,EH,21/03/2013,LB Camden - Business Rates,0020050814,"672,670.00 ",Resources Group - Office Estate,Rates & CILOR
225,DCMS,EH,18/03/2013,Wyndeham Web Ltd,0040024116,"22,782.44 ",National Collections Group - Marketing Department,Marketing Publishing
226,DCMS,EH,18/03/2013,Wyndeham Web Ltd,0040024116,"3,089.04 ",National Collections Group - Marketing Department,Marketing Publishing
227,DCMS,EH,14/03/2013,Jones Lang LaSalle Limited,0040024123,"22,747.50 ",Resources Group - Office Estate,Rent - Operating Leases
228,DCMS,EH,14/03/2013,Jones Lang LaSalle Limited,0040024123,"8,827.80 ",Resources Group - Office Estate,Building Service Charges
229,DCMS,EH,18/03/2013,CB Richard Ellis Ltd,0040024599,"63,902.00 ",Resources Group - Office Estate,Building Service Charges
230,DCMS,EH,18/03/2013,CB Richard Ellis Ltd,0040024599,"235,500.00 ",Resources Group - Office Estate,Rent - Operating Leases
231,DCMS,EH,18/03/2013,CB Richard Ellis Ltd,0040024600,"24,172.00 ",Resources Group - Office Estate,Building Service Charges
232,DCMS,EH,18/03/2013,CB Richard Ellis Ltd,0040024600,"79,175.00 ",Resources Group - Office Estate,Rent - Operating Leases
233,DCMS,EH,09/04/2013,Leach Colour,0040027813,"31,104.00 ",National Collections Group - Curatorial Department,WIP Exhibitions & Displays
234,DCMS,EH,15/03/2013,Universal Stone Limited,0040024757,"47,508.67 ",National Collections Group - Major Conservation Projects,Works for Heritage Buildings
235,DCMS,EH,26/03/2013,Universal Stone Limited,0040025865,"44,150.71 ",National Collections Group - Major Conservation Projects,Works for Heritage Buildings
236,DCMS,EH,08/04/2013,Universal Stone Limited,0040027609,"56,794.02 ",National Collections Group - Major Conservation Projects,Works for Heritage Buildings
237,DCMS,EH,06/03/2013,Skanska Rashleigh Weatherfoil Ltd,0040022557,"29,349.60 ",National Collections Group - Curatorial Department,WIP Operational Building Works
238,DCMS,EH,14/03/2013,Skanska Rashleigh Weatherfoil Ltd,0040024566,"94,455.60 ",National Collections Group - Curatorial Department,WIP Operational Building Works
239,DCMS,EH,10/04/2013,Skanska Rashleigh Weatherfoil Ltd,0040028074,"71,432.40 ",National Collections Group - Curatorial Department,WIP Operational Building Works
240,DCMS,EH,28/03/2013,The Fencing Partnership Ltd,0040026619,"37,452.50 ",National Collections Group - Capital Investment Programme,WIP Operational Building Works
241,DCMS,EH,26/03/2013,G.J. Banks (I.W.) Ltd,0040026026,"29,469.85 ",National Collections Group - Property Maintenance Programme,Planned Maintenance
242,DCMS,EH,26/03/2013,G.J. Banks (I.W.) Ltd,0040026037,"47,869.72 ",National Collections Group - Property Maintenance Programme,Planned Maintenance
243,DCMS,EH,02/04/2013,G.J. Banks (I.W.) Ltd,0040026874,"1,593.06 ",National Collections Group - Property Maintenance Programme,Planned Maintenance
244,DCMS,EH,02/04/2013,G.J. Banks (I.W.) Ltd,0040026874,"60,536.28 ",National Collections Group - Property Maintenance Programme,Planned Maintenance
245,DCMS,EH,03/04/2013,Harlow Property Management Ltd,0040027357,"54,750.00 ",Resources Group - Office Estate,Rent - Operating Leases
246,DCMS,EH,05/03/2013,Specialist Computer Centres plc,0040023494,"32,443.28 ",Resources Group - IMT Department,Software Maintenance
247,DCMS,EH,05/04/2013,Specialist Computer Centres plc,0040026968,"1,459.44 ",Resources Group - IMT Department,WIP Asset Purch Under 10k
248,DCMS,EH,05/04/2013,Specialist Computer Centres plc,0040026968,719.10 ,Resources Group - IMT Department,WIP Asset Purch Under 10k
249,DCMS,EH,05/04/2013,Specialist Computer Centres plc,0040026968,"9,213.42 ",Resources Group - IMT Department,WIP Asset Purch Under 10k
250,DCMS,EH,05/04/2013,Specialist Computer Centres plc,0040026968,"69,486.55 ",Resources Group - IMT Department,WIP Asset Purch Over 10k
251,DCMS,EH,05/04/2013,Specialist Computer Centres plc,0040026968,"27,961.77 ",Resources Group - IMT Department,WIP Asset Purch Over 10k
252,DCMS,EH,05/04/2013,Specialist Computer Centres plc,0040026968,"92,971.68 ",Resources Group - IMT Department,WIP Asset Purch Over 10k
253,DCMS,EH,09/04/2013,Specialist Computer Centres plc,0040027412,"10,423.44 ",Resources Group - IMT Department,Computer Equipment <10k
254,DCMS,EH,09/04/2013,Specialist Computer Centres plc,0040027412,"3,989.41 ",Resources Group - IMT Department,Computer Equipment <10k
255,DCMS,EH,09/04/2013,Specialist Computer Centres plc,0040027412,"25,765.45 ",Resources Group - IMT Department,Computer Equipment <10k
256,DCMS,EH,09/04/2013,Specialist Computer Centres plc,0040027412,"44,882.78 ",Resources Group - IMT Department,Computer Equipment <10k
257,DCMS,EH,09/04/2013,Specialist Computer Centres plc,0040027412,"4,293.84 ",Resources Group - IMT Department,Computer Equipment <10k
258,DCMS,EH,09/04/2013,Specialist Computer Centres plc,0040027412,"4,839.92 ",Resources Group - IMT Department,Computer Equipment <10k
259,DCMS,EH,10/04/2013,Specialist Computer Centres plc,0040027463,"16,996.53 ",Resources Group - IMT Department,WIP Asset Purch Over 10k
260,DCMS,EH,10/04/2013,Specialist Computer Centres plc,0040027463,268.32 ,Resources Group - IMT Department,WIP Asset Purch Under 10k
261,DCMS,EH,10/04/2013,Specialist Computer Centres plc,0040027463,"3,058.80 ",Resources Group - IMT Department,WIP Asset Purch Under 10k
262,DCMS,EH,10/04/2013,Specialist Computer Centres plc,0040027463,440.10 ,Resources Group - IMT Department,WIP Asset Purch Under 10k
263,DCMS,EH,10/04/2013,Specialist Computer Centres plc,0040027463,769.68 ,Resources Group - IMT Department,WIP Asset Purch Under 10k
264,DCMS,EH,10/04/2013,Specialist Computer Centres plc,0040027463,"6,428.33 ",Resources Group - IMT Department,WIP Asset Purch Under 10k
265,DCMS,EH,10/04/2013,Specialist Computer Centres plc,0040027463,"49,259.70 ",Resources Group - IMT Department,WIP Asset Purch Over 10k
266,DCMS,EH,04/04/2013,Specialist Computer Centres plc,0040027544,"97,823.88 ",Resources Group - IMT Department,Computer Equipment <10k
267,DCMS,EH,04/04/2013,Specialist Computer Centres plc,0040027545,"48,602.73 ",Resources Group - IMT Department,Computer Equipment <10k
268,DCMS,EH,11/03/2013,Russell Trew Limited,0040024105,"65,689.88 ",National Collections Group - Property Maintenance Programme,Planned Maintenance
269,DCMS,EH,26/03/2013,Russell Trew Limited,0040026024,"57,174.82 ",National Collections Group - Property Maintenance Programme,Planned Maintenance
270,DCMS,EH,28/03/2013,Messenger Construction Ltd,0040025980,"29,292.00 ",Heritage Protection & Planning Group - Nat. Planning & Conservation Department,Works for Heritage Buildings
271,DCMS,EH,18/03/2013,Vinci Construction UK Ltd,0040024332,"119,104.80 ",National Collections Group - Capital Investment Programme,Works for Heritage Buildings
272,DCMS,EH,18/03/2013,Vinci Construction UK Ltd,0040024332,"51,477.60 ",National Collections Group - Capital Investment Programme,Works for Heritage Buildings
273,DCMS,EH,18/03/2013,Vinci Construction UK Ltd,0040024332,"142,016.40 ",National Collections Group - Capital Investment Programme,WIP Operational Building Works
274,DCMS,EH,18/03/2013,Vinci Construction UK Ltd,0040024332,"37,800.00 ",National Collections Group - Capital Investment Programme,WIP Operational Building Works
275,DCMS,EH,18/03/2013,Vinci Construction UK Ltd,0040024332,"5,140.80 ",National Collections Group - Capital Investment Programme,WIP Operational Building Works
276,DCMS,EH,18/03/2013,Vinci Construction UK Ltd,0040024332,"34,465.20 ",National Collections Group - Capital Investment Programme,WIP Operational Building Works
277,DCMS,EH,18/03/2013,Vinci Construction UK Ltd,0040024332,"220,573.20 ",National Collections Group - Capital Investment Programme,WIP Operational Building Works
278,DCMS,EH,18/03/2013,Vinci Construction UK Ltd,0040024332,"14,133.60 ",National Collections Group - Capital Investment Programme,WIP Professional Works Advice
279,DCMS,EH,18/03/2013,Vinci Construction UK Ltd,0040024332,"6,901.20 ",National Collections Group - Capital Investment Programme,Works for Heritage Buildings
280,DCMS,EH,18/03/2013,Vinci Construction UK Ltd,0040024332,"89,283.60 ",National Collections Group - Capital Investment Programme,Works for Heritage Buildings
281,DCMS,EH,09/04/2013,Vinci Construction UK Ltd,0040027966,"7,216.80 ",National Collections Group - Capital Investment Programme,Works for Heritage Buildings
282,DCMS,EH,09/04/2013,Vinci Construction UK Ltd,0040027966,"69,469.20 ",National Collections Group - Capital Investment Programme,Works for Heritage Buildings
283,DCMS,EH,09/04/2013,Vinci Construction UK Ltd,0040027966,"244,358.40 ",National Collections Group - Capital Investment Programme,WIP Operational Building Works
284,DCMS,EH,09/04/2013,Vinci Construction UK Ltd,0040027966,"13,270.80 ",National Collections Group - Capital Investment Programme,WIP Operational Building Works
285,DCMS,EH,09/04/2013,Vinci Construction UK Ltd,0040027966,"19,010.40 ",National Collections Group - Capital Investment Programme,WIP Operational Building Works
286,DCMS,EH,09/04/2013,Vinci Construction UK Ltd,0040027966,"154,482.00 ",National Collections Group - Capital Investment Programme,WIP Professional Works Advice
287,DCMS,EH,09/04/2013,Vinci Construction UK Ltd,0040027966,"5,923.20 ",National Collections Group - Capital Investment Programme,Works for Heritage Buildings
288,DCMS,EH,09/04/2013,Vinci Construction UK Ltd,0040027966,"71,355.60 ",National Collections Group - Capital Investment Programme,Works for Heritage Buildings
289,DCMS,EH,09/04/2013,Vinci Construction UK Ltd,0040027966,"186,920.40 ",National Collections Group - Capital Investment Programme,WIP Operational Building Works
290,DCMS,EH,09/04/2013,Vinci Construction UK Ltd,0040027966,"8,854.80 ",National Collections Group - Capital Investment Programme,WIP Operational Building Works
291,DCMS,EH,09/04/2013,Vinci Construction UK Ltd,0040027966,"95,124.00 ",National Collections Group - Capital Investment Programme,Works for Heritage Buildings
292,DCMS,EH,03/04/2013,MediaCom North Ltd,0040026598,"34,260.26 ",National Collections Group - Marketing Department,Media
293,DCMS,EH,10/04/2013,MediaCom North Ltd,0040027820,85.77 ,National Collections Group - Marketing Department,Media
294,DCMS,EH,10/04/2013,MediaCom North Ltd,0040027820,"102,924.00 ",National Collections Group - Marketing Department,Media
295,DCMS,EH,08/04/2013,MediaCom North Ltd,0040027822,"10,512.38 ",National Collections Group - Marketing Department,Media
296,DCMS,EH,08/04/2013,MediaCom North Ltd,0040027822,"17,821.85 ",National Collections Group - Marketing Department,Media
297,DCMS,EH,08/04/2013,MediaCom North Ltd,0040027822,34.16 ,National Collections Group - Marketing Department,Media
298,DCMS,EH,08/04/2013,MediaCom North Ltd,0040027822,"8,155.93 ",National Collections Group - Marketing Department,Media
299,DCMS,EH,08/04/2013,MediaCom North Ltd,0040027822,"2,615.16 ",National Collections Group - Marketing Department,Media
300,DCMS,EH,08/04/2013,MediaCom North Ltd,0040027822,"1,891.63 ",National Collections Group - Marketing Department,Media
301,DCMS,EH,09/04/2013,MediaCom North Ltd,0040027824,"16,444.80 ",National Collections Group - Marketing Department,Media
302,DCMS,EH,09/04/2013,MediaCom North Ltd,0040027824,"9,858.00 ",National Collections Group - Marketing Department,Media
303,DCMS,EH,09/04/2013,MediaCom North Ltd,0040027824,"3,621.18 ",National Collections Group - Marketing Department,Media
304,DCMS,EH,09/04/2013,MediaCom North Ltd,0040027824,25.00 ,National Collections Group - Marketing Department,Media
305,DCMS,EH,09/04/2013,MediaCom North Ltd,0040027824,79.20 ,National Collections Group - Marketing Department,Media
306,DCMS,EH,21/03/2013,Smith & Milton Ltd,0040021479,"2,640.00 ",National Collections Group - Marketing Department,Marketing Creative
307,DCMS,EH,21/03/2013,Smith & Milton Ltd,0040021479,"9,063.60 ",National Collections Group - Marketing Department,Marketing Creative
308,DCMS,EH,21/03/2013,Smith & Milton Ltd,0040021479,"5,808.00 ",National Collections Group - Marketing Department,Marketing Creative
309,DCMS,EH,21/03/2013,Smith & Milton Ltd,0040021479,"4,128.00 ",National Collections Group - Marketing Department,Marketing Creative
310,DCMS,EH,21/03/2013,Smith & Milton Ltd,0040021479,"4,880.40 ",National Collections Group - Marketing Department,Marketing Creative
311,DCMS,EH,21/03/2013,Smith & Milton Ltd,0040021479,"4,944.00 ",National Collections Group - Marketing Department,Marketing Creative
312,DCMS,EH,21/03/2013,Smith & Milton Ltd,0040025116,"34,320.00 ",National Collections Group - Marketing Department,Marketing Creative
313,DCMS,EH,03/04/2013,Smith & Milton Ltd,0040026356,"30,000.00 ",National Collections Group - Marketing Department,Marketing Creative
314,DCMS,EH,04/04/2013,Smith & Milton Ltd,0040027498,"48,000.00 ",National Collections Group - Marketing Department,Marketing Creative
315,DCMS,EH,05/04/2013,Ramboll UK Ltd,0040026389,"41,400.00 ",National Collections Group - Major Conservation Projects,Fees for Professional Advice
316,DCMS,EH,04/04/2013,Nu-Weld Engineering Services Ltd,0040027290,"36,703.13 ",National Collections Group - Capital Investment Programme,WIP Operational Building Works
317,DCMS,EH,14/03/2013,Outside Studios Ltd,0040024022,"58,299.60 ",National Collections Group - Capital Investment Programme,WIP Exhibitions & Displays
318,DCMS,EH,08/04/2013,Outside Studios Ltd,0040027327,"51,000.00 ",National Collections Group - Capital Investment Programme,WIP Exhibitions & Displays
319,DCMS,EH,06/03/2013,Willerby Landscapes Ltd,0040023744,"14,514.98 ",National Collections Group - Capital Investment Programme,WIP Landscape Works
320,DCMS,EH,06/03/2013,Willerby Landscapes Ltd,0040023744,"27,866.45 ",National Collections Group - Capital Investment Programme,WIP Landscape Works
321,DCMS,EH,07/03/2013,The Queens's University Belfast,0040023835,"2,700.00 ",Heritage Protection & Planning Group - Heritage Protection Department,Technical research
322,DCMS,EH,07/03/2013,The Queens's University Belfast,0040023835,"1,620.00 ",Heritage Protection & Planning Group - Heritage Protection Department,Technical research
323,DCMS,EH,07/03/2013,The Queens's University Belfast,0040023835,"1,890.00 ",Heritage Protection & Planning Group - Heritage Protection Department,Technical research
324,DCMS,EH,07/03/2013,The Queens's University Belfast,0040023835,"1,350.00 ",Heritage Protection & Planning Group - Heritage Protection Department,Technical research
325,DCMS,EH,07/03/2013,The Queens's University Belfast,0040023835,"2,970.00 ",Heritage Protection & Planning Group - Heritage Protection Department,Technical research
326,DCMS,EH,07/03/2013,The Queens's University Belfast,0040023835,"2,227.50 ",Heritage Protection & Planning Group - Heritage Protection Department,Technical research
327,DCMS,EH,07/03/2013,The Queens's University Belfast,0040023835,247.50 ,Heritage Protection & Planning Group - Heritage Protection Department,Technical research
328,DCMS,EH,07/03/2013,The Queens's University Belfast,0040023835,495.00 ,Heritage Protection & Planning Group - Heritage Protection Department,Technical research
329,DCMS,EH,07/03/2013,The Queens's University Belfast,0040023835,945.00 ,Heritage Protection & Planning Group - Heritage Protection Department,Technical research
330,DCMS,EH,07/03/2013,The Queens's University Belfast,0040023835,270.00 ,Heritage Protection & Planning Group - Heritage Protection Department,Technical research
331,DCMS,EH,07/03/2013,The Queens's University Belfast,0040023835,"5,670.00 ",Heritage Protection & Planning Group - Heritage Protection Department,Technical research
332,DCMS,EH,07/03/2013,The Queens's University Belfast,0040023835,"1,080.00 ",Heritage Protection & Planning Group - Heritage Protection Department,Technical research
333,DCMS,EH,07/03/2013,The Queens's University Belfast,0040023835,540.00 ,Heritage Protection & Planning Group - Heritage Protection Department,Technical research
334,DCMS,EH,07/03/2013,The Queens's University Belfast,0040023835,540.00 ,Heritage Protection & Planning Group - Heritage Protection Department,Technical research
335,DCMS,EH,07/03/2013,The Queens's University Belfast,0040023835,"1,350.00 ",Heritage Protection & Planning Group - Heritage Protection Department,Technical research
336,DCMS,EH,07/03/2013,The Queens's University Belfast,0040023835,"1,890.00 ",Heritage Protection & Planning Group - Heritage Protection Department,Technical research
337,DCMS,EH,11/03/2013,Merac Systems Ltd,0040023066,"30,000.00 ",National Collections Group - Capital Investment Programme,WIP Systems Development
338,DCMS,EH,11/03/2013,Merac Systems Ltd,0040023073,"25,200.00 ",National Collections Group - Curatorial Department,Computer Equipment <10k
339,DCMS,EH,20/03/2013,Architectural Decorators Ltd,0040024694,"34,532.30 ",National Collections Group - Property Maintenance Programme,Planned Maintenance
340,DCMS,EH,02/04/2013,Architectural Decorators Ltd,0040026800,"47,547.70 ",National Collections Group - Property Maintenance Programme,Planned Maintenance
341,DCMS,EH,28/03/2013,NMC Surfacing Ltd,0040026701,"227,476.87 ",National Collections Group - Property Maintenance Programme,Planned Maintenance
342,DCMS,EH,28/03/2013,NMC Surfacing Ltd,0040026701,"5,654.02 ",National Collections Group - Property Maintenance Programme,Planned Maintenance
343,DCMS,EH,04/04/2013,Ground Control Ltd (Tilhill Landscaping),0040026589,"123,885.86 ",National Collections Group - Capital Investment Programme,Landscape works
344,DCMS,EH,04/04/2013,Ground Control Ltd (Tilhill Landscaping),0040026762,"33,124.07 ",National Collections Group - Capital Investment Programme,Landscape works
345,DCMS,EH,08/04/2013,Mallett Inc,0020051023,"31,500.00 ",National Collections Group - Major Conservation Projects,WIP Operational Building Works
346,DCMS,EH,04/04/2013,W. H Brading & Son Ltd,0040027380,"38,267.20 ",National Collections Group - Capital Investment Programme,WIP Operational Building Works
347,DCMS,EH,10/04/2013,Lewisford Construction Ltd,0040027033,"47,643.43 ",National Collections Group - Capital Investment Programme,WIP Operational Building Works
348,DCMS,EH,08/04/2013,Geomatrix Earth Science Ltd,0040027076,"86,953.20 ",Heritage Protection & Planning Group - Heritage Protection Department,Plant & Equipment > 10k
349,DCMS,EH,25/03/2013,Independent Bldg Investigation Serv. Ltd,0040024717,"29,000.00 ",Heritage Protection & Planning Group - Heritage Protection Department,Hist Environ Prog Projects Gra
350,DCMS,EH,09/04/2013,The Telegraph Media Group,0040028027,"30,000.00 ",Resources Group - Corporate,Promotional Material
351,DCMS,EH,05/04/2013,Cheshire Office Interiors LLP,0040026737,"25,200.00 ",Resources Group - Office Estate,Planned Maintenance
352,DCMS,EH,11/04/2013,AC Archaeology Ltd,0040026008,"60,000.00 ",Heritage Protection & Planning Group - Heritage Protection Department,Hist Environ Prog Projects Gra
353,DCMS,EH,09/04/2013,Bunnyfoot Ltd,0040027844,"48,696.00 ",National Advice & Information Group - Communications Department,System developments <50k
354,DCMS,EH,28/03/2013,Corona Energy,0020050939,"36,048.62 ",Resources Group - Corporate,Gas & Oil
355,DCMS,EH,11/04/2013,Goppion S.p.A.,0020051055,"25,756.44 ",National Collections Group - Capital Investment Programme,WIP Professional Works Advice
356,DCMS,EH,11/04/2013,Goppion S.p.A.,0020051056,"25,756.44 ",National Collections Group - Capital Investment Programme,WIP Professional Works Advice
357,DCMS,EH,22/03/2013,EVOBUS (UK) LTD,0020050853,"99,900.00 ",National Collections Group - Capital Investment Programme,Vehicles > 10k
358,DCMS,EH,18/03/2013,North of England Civic Trust,0090513562,"28,400.00 ",Heritage Protection & Planning Group - Nat. Planning & Conservation Department,GRANTS PAYABLE - OTHER GRANTS
359,DCMS,EH,20/03/2013,Mayflower Technology Ltd,0090513586,"27,472.00 ",Heritage Protection & Planning Group - Nat. Planning & Conservation Department,GRANTS PAYABLE - HISTORIC BUILDINGS
360,DCMS,EH,19/03/2013,The National Trust Wiltshire,0090513569,"64,165.00 ",Heritage Protection & Planning Group - Nat. Planning & Conservation Department,GRANTS PAYABLE - OTHER GRANTS
361,DCMS,EH,27/03/2013,South Holland District Council,0090700099,"61,586.00 ",Heritage Protection & Planning Group - Nat. Planning & Conservation Department,GRANTS PAYABLE - AREA
362,DCMS,EH,18/03/2013,London Borough Of Tower Hamlets,0090513564,"166,312.00 ",Heritage Protection & Planning Group - Nat. Planning & Conservation Department,GRANTS PAYABLE - AREA
363,DCMS,EH,19/03/2013,The Architectural Heritage Fund,0090513573,"56,878.00 ",Heritage Protection & Planning Group - Nat. Planning & Conservation Department,GRANTS PAYABLE - OTHER GRANTS
364,DCMS,EH,19/03/2013,Heritage Link,0090513571,"33,615.00 ",Heritage Protection & Planning Group - Nat. Planning & Conservation Department,GRANTS PAYABLE - OTHER GRANTS
365,DCMS,EH,21/03/2013,East Peak Innovation Partnership,0090513588,"27,858.00 ",Heritage Protection & Planning Group - Nat. Planning & Conservation Department,GRANTS PAYABLE - OTHER GRANTS
366,DCMS,EH,27/03/2013,Vivacity Peterborough Culture &,0081002527,"91,197.60 ",Heritage Protection & Planning Group - Heritage Protection Department,Historic Environ Prog Grants
367,DCMS,EH,06/03/2013,Humber Archaeology Partnership,0081002353,"25,000.00 ",Heritage Protection & Planning Group - Heritage Protection Department,Historic Environ Prog Grants
368,DCMS,EH,27/03/2013,York University,0081002538,"75,000.00 ",Heritage Protection & Planning Group - Heritage Protection Department,Historic Environ Prog Grants
369,DCMS,EH,20/03/2013,Reading University,0081002479,"30,000.00 ",Heritage Protection & Planning Group - Heritage Protection Department,Historic Environ Prog Grants
370,DCMS,EH,06/03/2013,Historic Environment Service,0081002352,"25,000.00 ",Heritage Protection & Planning Group - Heritage Protection Department,Historic Environ Prog Grants
371,DCMS,EH,20/03/2013,Historic Environment Service,0081002466,"25,000.00 ",Heritage Protection & Planning Group - Heritage Protection Department,Historic Environ Prog Grants
372,DCMS,EH,20/03/2013,Historic Environment Service,0081002488,"45,000.00 ",Heritage Protection & Planning Group - Heritage Protection Department,Historic Environ Prog Grants
373,DCMS,EH,20/03/2013,Southampton University,0081002449,"25,490.17 ",Heritage Protection & Planning Group - Heritage Protection Department,GRANTS PAYABLE - ARCHAEOLOGY GRANTS
374,DCMS,EH,20/03/2013,Essex County Council,0081002481,"25,000.00 ",Heritage Protection & Planning Group - Heritage Protection Department,Historic Environ Prog Grants
375,DCMS,EH,27/03/2013,Trent and Peak Arch Trust,0081002519,"25,568.02 ",Heritage Protection & Planning Group - Heritage Protection Department,Historic Environ Prog Grants
376,DCMS,EH,20/03/2013,Leicester University,0081002483,"30,000.00 ",Heritage Protection & Planning Group - Heritage Protection Department,Historic Environ Prog Grants
377,DCMS,EH,20/03/2013,Gloucestershire County Council,0081002456,"25,000.00 ",Heritage Protection & Planning Group - Heritage Protection Department,Historic Environ Prog Grants
378,DCMS,EH,06/03/2013,Museum of London Arch Services,0081002344,"58,535.65 ",Heritage Protection & Planning Group - Heritage Protection Department,Historic Environ Prog Grants
379,DCMS,EH,06/03/2013,Council British Arch York,0081002357,"26,935.00 ",Heritage Protection & Planning Group - Heritage Protection Department,Historic Environ Prog Grants
380,DCMS,EH,27/03/2013,Bournemouth University,0081002516,"75,000.00 ",Heritage Protection & Planning Group - Heritage Protection Department,Historic Environ Prog Grants
381,DCMS,EH,20/03/2013,Norfolk County Council,0081002437,"34,170.00 ",Heritage Protection & Planning Group - Heritage Protection Department,Historic Environ Prog Grants
382,DCMS,EH,20/03/2013,Devon County Council,0081002458,"31,471.10 ",Heritage Protection & Planning Group - Heritage Protection Department,Historic Environ Prog Grants
383,DCMS,EH,06/03/2013,Institute Of Field Archaeologists,0081002367,"25,000.00 ",Heritage Protection & Planning Group - Heritage Protection Department,Historic Environ Prog Grants
384,DCMS,EH,13/03/2013,Institute Of Field Archaeologists,0081002402,"25,000.00 ",Heritage Protection & Planning Group - Heritage Protection Department,Historic Environ Prog Grants
385,DCMS,EH,06/03/2013,City Of Stoke On Trent,0081002350,"45,137.00 ",Heritage Protection & Planning Group - Heritage Protection Department,Historic Environ Prog Grants
386,DCMS,EH,13/03/2013,City Of Stoke On Trent,0081002390,"30,876.00 ",Heritage Protection & Planning Group - Heritage Protection Department,Historic Environ Prog Grants
387,DCMS,EH,26/03/2013,Manchester Historic Buildings Trst,0082001414,"38,599.00 ",Heritage Protection & Planning Group - Nat. Planning & Conservation Department,GRANTS PAYABLE - HISTORIC BUILDINGS
388,DCMS,EH,08/03/2013,PCC of St John & St Luke Clay Hill,0082001319,"42,750.00 ",Heritage Protection & Planning Group - Nat. Planning & Conservation Department,GRANTS PAYABLE - PLACES OF WORSHIP
389,DCMS,EH,01/03/2013,St Vincent de Paul Church,0082001296,"50,000.00 ",Heritage Protection & Planning Group - Nat. Planning & Conservation Department,GRANTS PAYABLE - PLACES OF WORSHIP
390,DCMS,EH,01/03/2013,St Vincent de Paul Church,0082001297,"31,000.00 ",Heritage Protection & Planning Group - Nat. Planning & Conservation Department,GRANTS PAYABLE - PLACES OF WORSHIP
391,DCMS,EH,20/03/2013,Heritage of London Trust Ops Ltd,0082001393,"25,000.00 ",Heritage Protection & Planning Group - Nat. Planning & Conservation Department,GRANTS PAYABLE - HISTORIC BUILDINGS
392,DCMS,EH,01/03/2013,St James Heckmondwike PCC,0082001285,"44,455.00 ",Heritage Protection & Planning Group - Nat. Planning & Conservation Department,GRANTS PAYABLE - PLACES OF WORSHIP
393,DCMS,EH,15/03/2013,Cullompton Walronds Preserv Trust,0082001351,"64,350.00 ",Heritage Protection & Planning Group - Nat. Planning & Conservation Department,GRANTS PAYABLE - HISTORIC BUILDINGS
394,DCMS,EH,15/03/2013,Colchester Borough Council,0082001354,"35,000.00 ",Heritage Protection & Planning Group - Nat. Planning & Conservation Department,GRANTS PAYABLE - HISTORIC BUILDINGS
395,DCMS,EH,08/03/2013,Suffolk County Council,0082001327,"139,724.00 ",Heritage Protection & Planning Group - Nat. Planning & Conservation Department,GRANTS PAYABLE - HISTORIC BUILDINGS
396,DCMS,EH,08/03/2013,Suffolk County Council,0082001328,"76,814.00 ",Heritage Protection & Planning Group - Nat. Planning & Conservation Department,GRANTS PAYABLE - HISTORIC BUILDINGS
397,DCMS,EH,27/03/2013,Derby City Council,0090700096,"102,613.00 ",Heritage Protection & Planning Group - Nat. Planning & Conservation Department,GRANTS PAYABLE - AREA
398,DCMS,EH,25/03/2013,Northumberland County Council,0090700094,427.00 ,Heritage Protection & Planning Group - Nat. Planning & Conservation Department,GRANTS PAYABLE - AREA
399,DCMS,EH,25/03/2013,Northumberland County Council,0090700094,"4,986.00 ",Heritage Protection & Planning Group - Nat. Planning & Conservation Department,GRANTS PAYABLE - AREA
400,DCMS,EH,25/03/2013,Northumberland County Council,0090700094,"42,421.00 ",Heritage Protection & Planning Group - Nat. Planning & Conservation Department,GRANTS PAYABLE - AREA
401,DCMS,EH,08/03/2013,The Parish of Holy Spirit Heckmondwike,0082001322,"68,500.00 ",Heritage Protection & Planning Group - Nat. Planning & Conservation Department,GRANTS PAYABLE - PLACES OF WORSHIP
402,DCMS,EH,19/03/2013,Crown Estate Paving Commission,0082001366,"106,672.00 ",Heritage Protection & Planning Group - Nat. Planning & Conservation Department,GRANTS PAYABLE - HISTORIC BUILDINGS
403,DCMS,EH,26/03/2013,Crown Estate Paving Commission,0082001413,"54,948.00 ",Heritage Protection & Planning Group - Nat. Planning & Conservation Department,GRANTS PAYABLE - HISTORIC BUILDINGS
404,DCMS,EH,27/03/2013,Norwich Preservation Trust,0082001422,"81,655.00 ",Heritage Protection & Planning Group - Nat. Planning & Conservation Department,GRANTS PAYABLE - HISTORIC BUILDINGS
405,DCMS,EH,15/03/2013,The Wolfeton Riding House Trust,0082001361,"30,400.00 ",Heritage Protection & Planning Group - Nat. Planning & Conservation Department,GRANTS PAYABLE - HISTORIC BUILDINGS
406,DCMS,EH,12/03/2013,Thornhill PCC,0082001341,"46,500.00 ",Heritage Protection & Planning Group - Nat. Planning & Conservation Department,GRANTS PAYABLE - PLACES OF WORSHIP
407,DCMS,EH,08/03/2013,Wakefield MDC,0090513552,"114,000.17 ",Heritage Protection & Planning Group - Nat. Planning & Conservation Department,GRANTS PAYABLE - OTHER GRANTS
408,DCMS,EH,12/03/2013,Birmingham CC- Property Services,0082001338,"154,490.00 ",Heritage Protection & Planning Group - Nat. Planning & Conservation Department,GRANTS PAYABLE - HISTORIC BUILDINGS
409,DCMS,EH,01/03/2013,St Pauls PCC,0082001286,"111,600.00 ",Heritage Protection & Planning Group - Nat. Planning & Conservation Department,GRANTS PAYABLE - PLACES OF WORSHIP
410,DCMS,EH,12/03/2013,Preston Seventh Day Adventist Church,0082001340,"76,273.00 ",Heritage Protection & Planning Group - Nat. Planning & Conservation Department,GRANTS PAYABLE - PLACES OF WORSHIP
411,DCMS,EH,01/03/2013,PCC Christchurch Parracombe,0082001284,"61,200.00 ",Heritage Protection & Planning Group - Nat. Planning & Conservation Department,GRANTS PAYABLE - PLACES OF WORSHIP
412,DCMS,EH,26/03/2013,The Corporate Body of Lincoln Cathedral,0082001417,"182,250.00 ",Heritage Protection & Planning Group - Nat. Planning & Conservation Department,GRANTS PAYABLE - HISTORIC BUILDINGS
413,DCMS,EH,26/03/2013,Scarborough Studios Ltd,0082001408,"41,250.00 ",Heritage Protection & Planning Group - Nat. Planning & Conservation Department,GRANTS PAYABLE - HISTORIC BUILDINGS
414,DCMS,EH,08/03/2013,Walpole St Peter PCC,0082001311,"38,700.00 ",Heritage Protection & Planning Group - Nat. Planning & Conservation Department,GRANTS PAYABLE - PLACES OF WORSHIP
415,DCMS,EH,01/03/2013,Great Ellingham PCC,0082001277,"32,000.00 ",Heritage Protection & Planning Group - Nat. Planning & Conservation Department,GRANTS PAYABLE - PLACES OF WORSHIP
416,DCMS,EH,01/03/2013,St Wilfrid's Church,0082001294,"35,000.00 ",Heritage Protection & Planning Group - Nat. Planning & Conservation Department,GRANTS PAYABLE - PLACES OF WORSHIP
417,DCMS,EH,08/03/2013,PCC of Upwell St Peter,0082001312,"63,500.00 ",Heritage Protection & Planning Group - Nat. Planning & Conservation Department,GRANTS PAYABLE - PLACES OF WORSHIP
418,DCMS,EH,08/03/2013,South Burlingham PCC,0082001324,"56,500.00 ",Heritage Protection & Planning Group - Nat. Planning & Conservation Department,GRANTS PAYABLE - PLACES OF WORSHIP
419,DCMS,EH,01/03/2013,"St Mary's, Newport PCC",0082001282,"45,500.00 ",Heritage Protection & Planning Group - Nat. Planning & Conservation Department,GRANTS PAYABLE - PLACES OF WORSHIP
420,DCMS,EH,01/03/2013,Gayton Thorpe PCC,0082001283,"50,250.00 ",Heritage Protection & Planning Group - Nat. Planning & Conservation Department,GRANTS PAYABLE - PLACES OF WORSHIP
421,DCMS,EH,08/03/2013,Gayton Thorpe PCC,0082001318,"40,200.00 ",Heritage Protection & Planning Group - Nat. Planning & Conservation Department,GRANTS PAYABLE - PLACES OF WORSHIP
422,DCMS,EH,12/03/2013,St Andrew's Church Wootton PCC,0082001337,"33,000.00 ",Heritage Protection & Planning Group - Nat. Planning & Conservation Department,GRANTS PAYABLE - PLACES OF WORSHIP
423,DCMS,EH,12/03/2013,St Andrew's Church Wootton PCC,0082001342,"32,250.00 ",Heritage Protection & Planning Group - Nat. Planning & Conservation Department,GRANTS PAYABLE - PLACES OF WORSHIP
424,DCMS,EH,08/03/2013,GREEK ORTHODOX CHURCH,0082001320,"43,650.00 ",Heritage Protection & Planning Group - Nat. Planning & Conservation Department,GRANTS PAYABLE - PLACES OF WORSHIP
425,DCMS,EH,20/03/2013,Bracknell PCC,0082001399,"39,000.00 ",Heritage Protection & Planning Group - Nat. Planning & Conservation Department,GRANTS PAYABLE - PLACES OF WORSHIP
426,DCMS,EH,20/03/2013,St James District Church Council,0082001385,"45,000.00 ",Heritage Protection & Planning Group - Nat. Planning & Conservation Department,GRANTS PAYABLE - PLACES OF WORSHIP
427,DCMS,EH,08/03/2013,Friday Bridge PCC,0082001323,"28,800.00 ",Heritage Protection & Planning Group - Nat. Planning & Conservation Department,GRANTS PAYABLE - PLACES OF WORSHIP
428,DCMS,EH,26/03/2013,The Charles Dickens Museum,0082001412,"72,000.00 ",Heritage Protection & Planning Group - Nat. Planning & Conservation Department,GRANTS PAYABLE - HISTORIC BUILDINGS
429,DCMS,EH,20/03/2013,"St Peter's Church, Westleigh PCC",0082001389,"81,500.00 ",Heritage Protection & Planning Group - Nat. Planning & Conservation Department,GRANTS PAYABLE - PLACES OF WORSHIP
430,DCMS,EH,01/03/2013,"PCC of St Andrew and St Peter, Blofield",0082001290,"44,500.00 ",Heritage Protection & Planning Group - Nat. Planning & Conservation Department,GRANTS PAYABLE - PLACES OF WORSHIP
431,DCMS,EH,15/03/2013,Lyonshall Parochial Church Council,0082001355,"30,500.00 ",Heritage Protection & Planning Group - Nat. Planning & Conservation Department,GRANTS PAYABLE - PLACES OF WORSHIP
432,DCMS,EH,01/03/2013,St Giles Parochial Church Council,0082001293,"93,500.00 ",Heritage Protection & Planning Group - Nat. Planning & Conservation Department,GRANTS PAYABLE - PLACES OF WORSHIP
433,DCMS,EH,15/03/2013,PCC for Leintwardine Church,0082001356,"62,500.00 ",Heritage Protection & Planning Group - Nat. Planning & Conservation Department,GRANTS PAYABLE - PLACES OF WORSHIP
434,DCMS,EH,12/03/2013,St Francis Xavier Parish Council,0082001343,"68,000.00 ",Heritage Protection & Planning Group - Nat. Planning & Conservation Department,GRANTS PAYABLE - PLACES OF WORSHIP
435,DCMS,EH,01/03/2013,Westmill PCC,0082001295,"39,000.00 ",Heritage Protection & Planning Group - Nat. Planning & Conservation Department,GRANTS PAYABLE - PLACES OF WORSHIP
436,DCMS,EH,20/03/2013,Friends of Thetford Forest Park,0082001396,"29,863.00 ",Heritage Protection & Planning Group - Nat. Planning & Conservation Department,GRANTS PAYABLE - HISTORIC BUILDINGS
437,DCMS,EH,12/03/2013,Pentney Priory Gatehouse,0082001349,"86,100.00 ",Heritage Protection & Planning Group - Nat. Planning & Conservation Department,GRANTS PAYABLE - HISTORIC BUILDINGS
438,DCMS,EH,27/03/2013,KIRKLEES PRIORY GATEHOUSE,0082001425,"36,500.00 ",Heritage Protection & Planning Group - Nat. Planning & Conservation Department,GRANTS PAYABLE - HISTORIC BUILDINGS
439,DCMS,EH,20/03/2013,Northampton Borough Council,0082001402,"149,250.00 ",Heritage Protection & Planning Group - Nat. Planning & Conservation Department,GRANTS PAYABLE - HISTORIC BUILDINGS
440,DCMS,EH,19/03/2013,Stockport Council,0082001378,"41,037.00 ",Heritage Protection & Planning Group - Nat. Planning & Conservation Department,GRANTS PAYABLE - HISTORIC BUILDINGS
441,DCMS,EH,27/03/2013,Great Croxley Barn Foundation,0082001428,"33,436.00 ",Heritage Protection & Planning Group - Nat. Planning & Conservation Department,GRANTS PAYABLE - HISTORIC BUILDINGS
442,DCMS,EH,12/03/2013,Lyme Bay Cider Company Ltd,0001080168,"72,293.87 ",National Collections Group - Historic Properties Department,Retail Goods & Souvenirs Purch
443,DCMS,EH,22/03/2013,Lyme Bay Cider Company Ltd,0001080231,"89,239.44 ",National Collections Group - Historic Properties Department,Retail Goods & Souvenirs Purch
444,DCMS,EH,08/04/2013,Lyme Bay Cider Company Ltd,0001080303,"71,509.98 ",National Collections Group - Historic Properties Department,Retail Goods & Souvenirs Purch
445,DCMS,EH,22/03/2013,Jomanda Ltd,0001080220,"27,956.40 ",National Collections Group - Historic Properties Department,Retail Goods & Souvenirs Purch
